Cogmind - Beta 9.2 @@@ ROGUE MODE // 2019.12.07 @ 12:35:33 Player: INSYN Result: Self-destructed Performance ------------- Evolutions (1) 500 Regions Visited (3) 600 Robots Destroyed (6) 30 Value Destroyed (216) 216 Prototype IDs (0) 0 Alien Tech Used (0) 0 Bonus (-25) -25 TOTAL SCORE: 1321 Bonus ------- Follower Combat Kills 25 Friendly Fire -50 Cogmind --------- Core Integrity 98/400 Matter 248/300 Energy 5/100 System Corruption 0% Temperature Cool (12) Movement Core (300) Ox5 Location -9/Materials Parts ------- > --- POWER (1) -------- (None) > --- PROPULSION (2) --- Aluminum Leg > --- UTILITY (3) ------ Large Storage Unit Improved Targeting Computer ECM Suite > --- WEAPON (3) ------- (None) > --- INVENTORY (10) --- Light Ion Engine Light Ion Engine Light Treads Light Treads Compact Wheel Mining Laser Mining Laser Mining Laser Mining Laser Peak State ------------ > --- POWER ------------ Light Ion Engine > --- PROPULSION ------- Aluminum Leg Aluminum Leg > --- UTILITY ---------- Large Storage Unit Improved Targeting Computer ECM Suite > --- WEAPON ----------- Mining Laser Mining Laser Mining Laser > --- INVENTORY -------- Light Ion Engine Light Ion Engine Light Treads Light Treads Compact Wheel Mining Laser Mining Laser Mining Laser Mining Laser Mining Laser [Rating: 11] Favorites ----------- Power Ion Engine Engine Ion Engine Propulsion Compact Wheel Leg Aluminum Leg Wheel Compact Wheel Utility Large Storage Unit Device ECM Suite Storage Large Storage Unit Processor Improved Targeting Computer Weapon Assault Rifle Energy Gun EM Pulse Gun Ballistic Gun Assault Rifle Special Weapon Mining Laser Build | -11 -10 -10 -9 ------- Run | Scr Mat Min Mat Slots Evolved 2 | . . . 2 Power . | . . . . Propulsion . | . . . . Utility 1 | . . . 1 Weapon 1 | . . . 1 Parts Attached 20 | 6 2 1 11 Power 2 | 1 . . 1 Engine 2 | 1 . . 1 Core . | . . . . Reactor . | . . . . Propulsion 4 | 2 . . 2 Treads . | . . . . Leg 2 | . . . 2 Wheel 2 | 2 . . . Hover . | . . . . Flight . | . . . . Utility 5 | 1 2 1 1 Device 2 | . 1 1 . Storage 2 | 1 1 . . Processor 1 | . . . 1 Hackware . | . . . . Protection . | . . . . Artifact . | . . . . Weapon 9 | 2 . . 7 Energy Gun 2 | 1 . . 1 Energy Cannon . | . . . . Ballistic Gun 2 | 1 . . 1 Ballistic Cannon . | . . . . Launcher . | . . . . Special Weapon 5 | . . . 5 Impact Weapon . | . . . . Slashing Weapon . | . . . . Piercing Weapon . | . . . . Special Melee Weapon . | . . . . Unidentified Prototypes . | . . . . Parts Lost 13 | . . . 13 Power 2 | . . . 2 Propulsion 2 | . . . 2 Utility . | . . . . Weapon 9 | . . . 9 Highest Loss Streak 6 | . . . 6 Average Slot Usage (%) 91 | . 98 100 83 Engine 12 | . 14 14 10 Leg 5 | . . . 11 Wheel 19 | . 28 28 9 Device 12 | . 12 14 11 Storage 12 | . 14 14 11 Processor 4 | . . . 9 Energy Gun 10 | . 14 14 6 Ballistic Gun 9 | . 14 14 4 Special Weapon 4 | . . . 9 Naked Turns . | . . . . Heaviest Build 28 | 13 26 26 28 Greatest Support 26 | 26 26 26 26 Greatest Overweight (x) 1 | . . . 1 Average Overweight (x) . | . . . . Largest Inventory Capacity 10 | 6 10 10 10 Average Capacity 8 | 5 6 10 10 Most Carried 10 | 6 6 10 10 Average Carried 7 | 3 6 8 7 Final Capacity 10 | 6 10 10 10 Final Carried 9 | 6 6 9 9 Class Distribution -------------------- 97% | Mutant Dominant Class ---------------- Mutant | -10/Materials Mutant | -10/Mines Mutant | -9/Materials Resources | -11 -10 -10 -9 ----------- Run | Scr Mat Min Mat Matter Collected 347 | 198 . 130 19 Remotely . | . . . . Salvage Created 222 | . . 108 114 Parts 8 | . . 2 6 Haulers Intercepted . | . . . . Recyclers Shooed . | . . . . Parts Field Recycled . | . . . . Retrieved Matter . | . . . . Parts Self-Destructed . | . . . . Prevented . | . . . . Kills | -11 -10 -10 -9 ------- Run | Scr Mat Min Mat Combat Hostiles Destroyed 6 | . . 2 4 Guns 3 | . . 2 1 Cannons 2 | . . . 2 AOE 1 | . . . 1 Classes Destroyed 3 | . . 2 1 Swarmer 1 | . . 1 . Grunt 4 | . . 1 3 Duelist 1 | . . . 1 Best Kill Streak 2 | . . 1 2 Combat Bots Only 2 | . . 1 2 Max Kills in Single Turn 1 | . . 1 1 Gunslinging . | . . . . Exploded 1 | . . . 1 Melee . | . . . . Uniques/NPCs Destroyed . | . . . . Combat | -11 -10 -10 -9 -------- Run | Scr Mat Min Mat Damage Taken 1186 | . . 75 1111 Core 312 | . . 10 302 Absorbed by Shields . | . . . . Core Remaining (%) 98 | 100 . 96 . Volleys Fired 54 | . . 23 31 Largest 3 | . . 1 3 Hottest 300 | . . 40 300 Shots Fired 56 | . . 23 33 Gun 46 | . . 23 23 Cannon . | . . . . Launcher . | . . . . Special 10 | . . . 10 Kinetic 30 | . . 16 14 Thermal 14 | . . . 14 Explosive . | . . . . Electromagnetic 12 | . . 7 5 Robot Hit Streak 15 | . . 5 15 Robot Miss Streak 3 | . . 3 1 Penetration Max . | . . . . Secondary Targets . | . . . . Shots Hit Robots 43 | . . 17 26 Core Hits 18 | . . 9 9 Critical Hits 1 | . . . 1 Critical Kills . | . . . . Critical Parts Destroyed 1 | . . . 1 Melee Attacks . | . . . . Impact . | . . . . Slashing . | . . . . Piercing . | . . . . Sneak Attacks . | . . . . Combat Hostiles . | . . . . Follow-up Attacks . | . . . . Damage Inflicted 643 | . . 243 400 Guns 431 | . . 243 188 Cannons . | . . . . Explosions 44 | . . . 44 Melee . | . . . . Ramming . | . . . . Kinetic 285 | . . 187 98 Thermal 250 | . . . 250 Explosive . | . . . . Electromagnetic 108 | . . 56 52 Impact . | . . . . Slashing . | . . . . Piercing . | . . . . Highest Corruption . | . . . . Average Corruption . | . . . . Corruption Purged . | . . . . Overload Shots . | . . . . Overflow Damage . | . . . . Projectiles . | . . . . Explosions . | . . . . Melee . | . . . . Knockbacks . | . . . . Impact . | . . . . Kinetic . | . . . . Secondary . | . . . . Self-Inflicted Damage . | . . . . Shots . | . . . . Rammed . | . . . . Targets Rammed . | . . . . Kicked . | . . . . Crushed . | . . . . Highest Temperature 134 | . . 18 134 Average Temperature 31 | . . 15 33 Received Heat Transfer 324 | . . 18 306 Siege Activations . | . . . . Robots Corrupted . | . . . . Combat Hostiles . | . . . . Parts Fried . | . . . . Impact Corruptions . | . . . . Robots Melted . | . . . . Combat Hostiles . | . . . . Parts Melted . | . . . . Heat Transferred 561 | . . . 561 Parts Sabotaged . | . . . . Parts Stolen . | . . . . Parts Stripped . | . . . . Power Chain Reactions 1 | . . . 1 Missiles Intercepted . | . . . . Alert | -11 -10 -10 -9 ------- Run | Scr Mat Min Mat Peak Influence 103 | . . 103 103 Average Influence 42 | . . 80 52 Maximum Alert Level . | . . . . Low Security (%) 100 | 100 100 100 100 Level 1 . | . . . . Level 2 . | . . . . Level 3 . | . . . . Level 4 . | . . . . Level 5 . | . . . . High Security . | . . . . Max Security . | . . . . Squads Dispatched . | . . . . Investigation . | . . . . Extermination . | . . . . Reinforcement . | . . . . Assault . | . . . . Garrison . | . . . . Intercept . | . . . . Construction Impeded . | . . . . Haulers Reinforced . | . . . . Stealth | -11 -10 -10 -9 --------- Run | Scr Mat Min Mat Distress Signals . | . . . . Communications Jammed . | . . . . Distress Signals . | . . . . Times Spotted 21 | . . 12 9 Peak Tracking Total 8 | . . 8 4 Tactical Retreats . | . . . . Traps | -11 -10 -10 -9 ------- Run | Scr Mat Min Mat Traps Triggered . | . . . . Indirectly . | . . . . Trap Hack Attempts . | . . . . Triggered . | . . . . Disarmed . | . . . . Reprogrammed . | . . . . Reused . | . . . . Traps Extracted . | . . . . Installed . | . . . . Triggered 1 | . . 1 . Machines | -11 -10 -10 -9 ---------- Run | Scr Mat Min Mat Machines Disabled 1 | . . . 1 Max in Single Turn 1 | . . . 1 Machines Sabotaged . | . . . . Garrisons Compromised . | . . . . Overloaded Fab Kills . | . . . . Fab Network Shutdowns . | . . . . Hacking | -11 -10 -10 -9 --------- Run | Scr Mat Min Mat Machines Accessed 2 | . 1 . 1 Terminals 2 | . 1 . 1 Fabricators . | . . . . Repair Stations . | . . . . Recycling Units . | . . . . Scanalyzers . | . . . . Garrison Access . | . . . . Total Hacks 5 | . 2 . 3 Successful 3 | . . . 3 Failed 2 | . 2 . . Catastrophic . | . . . . Database Lockouts . | . . . . Manual . | . . . . Terminals 5 | . 2 . 3 Fabricators . | . . . . Repair Stations . | . . . . Recycling Units . | . . . . Scanalyzers . | . . . . Garrison Access . | . . . . Terminal Hacks 3 | . . . 3 Record 1 | . . . 1 Branch Access Points 1 | . . . 1 Emergency Access Points 1 | . . . 1 Fabricator Hacks . | . . . . Repair Station Hacks . | . . . . Recycling Unit Hacks . | . . . . Scanalyzer . | . . . . Garrison Access Hacks . | . . . . Unauthorized Hacks . | . . . . Terminals . | . . . . Fabricators . | . . . . Repair Stations . | . . . . Recycling Units . | . . . . Scanalyzers . | . . . . Garrison Access . | . . . . Data Cores Recovered . | . . . . Used . | . . . . Hacking Detections 1 | . . . 1 Full Trace Events . | . . . . Feedback Events . | . . . . Feedback Blocked . | . . . . Robot Schematics Acquired . | . . . . Robots Built . | . . . . Matter . | . . . . Time . | . . . . Total Robot Build Rating . | . . . . Part Schematics Acquired . | . . . . Parts Built . | . . . . Matter . | . . . . Time . | . . . . Total Part Build Rating . | . . . . Parts Repaired . | . . . . Time . | . . . . Parts Recycled . | . . . . Recycled Matter . | . . . . Retrieved Matter . | . . . . Retrieved Components . | . . . . Parts Scanalyzed . | . . . . Part Schematics Acquired . | . . . . Parts Damaged . | . . . . Bothacking | -11 -10 -10 -9 ------------ Run | Scr Mat Min Mat Used RIF Installer . | . . . . Robots Hacked . | . . . . Non-combat . | . . . . Combat . | . . . . Robot Hacks Applied . | . . . . Relay Couplers Released . | . . . . Robots Rewired . | . . . . Allies Hacked . | . . . . Hacks Repelled . | . . . . Allies | -11 -10 -10 -9 -------- Run | Scr Mat Min Mat Total Allies 1 | . . 1 . Largest Group 1 | . . 1 1 Highest-Rated Group 31 | . . 31 31 Highest-Rated Ally 31 | . . 31 31 Total Orders . | . . . . Ally Attacks 12 | . . 6 6 Total Damage 191 | . . 86 105 Kills 2 | . . 2 . Allies Corrupted . | . . . . Allies Melted . | . . . . Intel | -11 -10 -10 -9 ------- Run | Scr Mat Min Mat Robot Analysis Total . | . . . . Derelict Logs Recovered . | . . . . Drone Launches . | . . . . Drone Recoveries . | . . . . Exploration | -11 -10 -10 -9 ------------- Run | Scr Mat Min Mat Turns Passed 666 | 64 146 165 291 Spaces Moved 466 | 53 157 119 137 Core 9 | 9 . . . Treads . | . . . . Legs 48 | . . . 48 Wheels 409 | 44 157 119 89 Hover . | . . . . Flight . | . . . . Fastest Speed 50 | 50 90 90 90 Average Speed 95 | 83 90 90 112 Slowest Speed 150 | 90 90 90 150 Overloaded Moves . | . . . . Propulsion Burnouts . | . . . . Robots Hopped . | . . . . Cave-ins Triggered . | . . . . Exploration Rate (%) 20 | 3 27 37 15 Regions Visited 3 Branch Regions 1 Pre-discovered Areas 1 | . . 1 . Known Exits Taken . | . . . . Unknown Exits Taken 3 | 1 1 1 . Scrap Searched 1 | . . 1 . Spaces Dug . | . . . . Terrain Destroyed 5 | . . . 5 Melee . | . . . . Projectile 2 | . . . 2 AOE 3 | . . . 3 Actions | -11 -10 -10 -9 --------- Run | Scr Mat Min Mat Total 610 | 72 161 154 223 Wait 44 | 3 2 5 34 Move 463 | 52 156 118 137 Hop . | . . . . Pick Up 26 | 11 . 5 10 Fast Attach 2 | 1 1 . . Attach 16 | 5 . 1 10 Detach . | . . . . Swap 2 | . 1 . 1 Drop 3 | . 1 2 . Fire 54 | . . 23 31 Melee . | . . . . Ram . | . . . . Kick . | . . . . Crush . | . . . . Escape Stasis . | . . . . Rewire . | . . . . Trap . | . . . . Miscellaneous . | . . . . Route ------- -11/Scrapyard -10/Materials -10/Mines -9/Materials (discovered 2 exits: Min x2) History --------- Turn | Location | Event 22 | -11/Scrapyard | Discovered new exit (range 16) 65 | -11/Scrapyard | Entered Materials 179 | -10/Materials | Discovered new exit (range 9) 211 | -10/Materials | Entered Mines 214 | -10/Mines | Escorted by a lone wolf Derelict 234 | -10/Mines | Learned location of Storage (-7) 260 | -10/Mines | Assembled infested the area 303 | -10/Mines | Build established: Mutant 372 | -10/Mines | Discovered new exit (range 5) 376 | -10/Mines | Entered Materials 376 | -9/Materials | Accompanied by 1 ally 376 | -9/Materials | Evolved 2 slots: Utility x1, Weapon x1 387 | -9/Materials | Identified exit to Mines 503 | -9/Materials | Core integrity fell below 50% 533 | -9/Materials | Lost 6 parts (1p1n4w) 667 | -9/Materials | Self-destructed Last Messages --------------- 00498_ Destroyed Imp. Aluminum Leg. 00499_ Ion Engine destroyed. 00502_ Lgt. Assault Rifle destroyed. 00509_ K-01 Serf collects debris. 00523_ Acquired Mining Laser. 00529_ L-31 Rogue destroyed. 00530_ Acquired 19 matter. 00535_ Acquired Mining Laser. 00542_ Mining Laser destroyed. 00558_ G-34 Mercenary destroyed. 00575_ Acquired Mining Laser. 00597_ K-01 Serf collects debris. 00646_ U-05 Engineer lays Concrete. 00648_ Mining Laser destroyed. 00649_ U-05 Engineer builds a Wall. 00651_ Mining Laser destroyed. 00654_ Aluminum Leg destroyed. 00657_ Lgt. Ion Engine destroyed. 00666_ Mining Laser destroyed. 00666_ U-05 Engineer builds a Wall. Map ----- +----------------------------------------------------+ | ???????????????????????????????? | | ???????????????????????????????? | | ???????????????????????????????? | | ???????????????????????????????? | | ???????????????????????????????? | | ???????????????????????????????? | | ???????????????????????????????? | | ???????????????????????????????? | | ?????????????????????? ????????? | | ????????? ???????????# ##+?????? | | ????????? ???????????# ?????? | | ????????? ???????????# #????? | | ????????# ???????????# #????? | | ????????# ???????????# l #????? | | ????????# ???#???????# g +????? | | ????????# ?? ????????# #????? | | ???????## ## ????????# #????? | | ######### ## ????????# #????? | | # % #?????????# #????? | | # "?????????# #????? | | # #?????????# #????? | | # #?????????# #????? | | # % #?????????# #????? | | # % ########### #????? | | ???""""" u### #? | | ???""""" @# # | | ???""""" u Y/ # | | ???""""" #### # !] # | | ???""""" #####+##### # !! # | | ????"""" # + +? # | | ????"""" # #+####? "# | | ???? # """"" # ?????? T# | | ???? # """"" # ???????"# | | ???""""" + """"" # ??????? # | | ???""""" # # ????????? | | ?????""" ## #?????????? | | ???????" ?# #?????????? | | ???????" ######+#####?????????? | | ?????""" ## #?????????? | | ?????""" ## #?????????? | | ????? ## #?????????? | | ???? ## #?????????? | | ???"""" ## """" #?????????? | | ??"""" ## """" #?????????? | | """"" ## """" #?????????? | | """"" ## #?????????? | | """"" #####+######?????????? | | """"" #???????????? | | """"" #???????????? | | #???????????? | +----------------------------------------------------+ Best States ------------- Heat Dissipation 28 Energy Generation 10 Energy Capacity 250 Matter Stores 300 Matter Capacity 300 Sight Range 16 Terrain Scan Density 10 ECM Strength 1 Evasion (%) 50 Targeting Accuracy 6 Item Schematics ----------------- None Robot Schematics ------------------ None Fabricated ------------ Nothing Alien Tech Used ----------------- None Achievements -------------- I Survived The Infestation Challenges ------------ None Game ------ Seed ActuatorPowerGenerator Manual? 0 Play Time 00:19:52 Cumulative 2.8 hours Start 2019.12.07 @ 12:15:55 End 2019.12.07 @ 12:35:33 Sessions 1 Manual Loads 0 Difficulty Rogue Special Mode None Game No. 6 Rogue 6 Adventurer 0 Explorer 0 Win Type - Total 0 Types 0/0/0/0/0/0/0 Lore% 1 Gallery% 5 Achievement% 5 Wizard Run 0 Options --------- ASCII 0 Keyboard 0 Movement Mouse Keybinds 0 Fullscreen 2 Font 18/SmallcapsGlow Map View 76x50 Tactical HUD 1 Map Filters NONE Filters NONE Steam 1 RUN: 22aeabee-2a23-4762-997e-0991c5102008